[Event "Live Chess"]
[Site "Chess.com"]
[Date "2023.05.21"]
[Round "-"]
[White "friarnator"]
[Black "KeithArkell"]
[Result "0-1"]
[WhiteElo "2029"]
[BlackElo "2458"]
[TimeControl "300"]
[EndTime "8:07:56 PDT"]
[Termination "KeithArkell won on time"]

1. e4 {[%clk 0:04:57.6]} 1... c6 {[%clk 0:04:59.3]} 2. d4 {[%clk 0:04:56.8]}
2... d5 {[%clk 0:04:58.6]} 3. Nc3 {[%clk 0:04:56]} 3... dxe4 {[%clk 0:04:57.6]}
4. Nxe4 {[%clk 0:04:55.9]} 4... Nd7 {[%clk 0:04:56.7]} 5. Ng5 {[%clk 0:04:52.2]}
5... Ngf6 {[%clk 0:04:55.6]} 6. Bd3 {[%clk 0:04:49.6]} 6... Nb6 {[%clk
0:04:53.8]} 7. c3 {[%clk 0:04:45]} 7... Bg4 {[%clk 0:04:51.3]} 8. N5f3 {[%clk
0:04:31.7]} 8... g6 {[%clk 0:04:48.4]} 9. h3 {[%clk 0:04:30.8]} 9... Bxf3 {[%clk
0:04:47.8]} 10. Nxf3 {[%clk 0:04:29.7]} 10... Bg7 {[%clk 0:04:47.3]} 11. Bg5
{[%clk 0:04:26.2]} 11... Qc7 {[%clk 0:04:46.1]} 12. Qd2 {[%clk 0:04:23.1]} 12...
O-O {[%clk 0:04:45]} 13. Bh6 {[%clk 0:04:21.2]} 13... c5 {[%clk 0:04:44.2]} 14.
dxc5 {[%clk 0:04:18.1]} 14... Qxc5 {[%clk 0:04:42.8]} 15. O-O {[%clk 0:04:16.5]}
15... Rfd8 {[%clk 0:04:40.7]} 16. Bxg7 {[%clk 0:04:12.5]} 16... Kxg7 {[%clk
0:04:40.6]} 17. Qc2 {[%clk 0:04:06.9]} 17... Rac8 {[%clk 0:04:25.6]} 18. Rad1
{[%clk 0:04:03.1]} 18... e6 {[%clk 0:04:20.8]} 19. Rd2 {[%clk 0:03:37.8]} 19...
Nc4 {[%clk 0:04:16.1]} 20. Bxc4 {[%clk 0:03:32.2]} 20... Qxc4 {[%clk 0:04:16]}
21. Rxd8 {[%clk 0:03:29.3]} 21... Rxd8 {[%clk 0:04:14.4]} 22. b3 {[%clk
0:03:28.3]} 22... Qd3 {[%clk 0:04:13.1]} 23. Qxd3 {[%clk 0:03:17.9]} 23... Rxd3
{[%clk 0:04:11.3]} 24. Rc1 {[%clk 0:03:17.6]} 24... Ne4 {[%clk 0:04:03.5]} 25.
c4 {[%clk 0:03:16.7]} 25... a5 {[%clk 0:04:02.3]} 26. Kf1 {[%clk 0:03:12.9]}
26... Nc5 {[%clk 0:03:56.1]} 27. Ke2 {[%clk 0:03:10.6]} 27... Rd7 {[%clk
0:03:54.1]} 28. Rd1 {[%clk 0:02:51.4]} 28... Rxd1 {[%clk 0:03:51.1]} 29. Kxd1
{[%clk 0:02:51.3]} 29... Ne4 {[%clk 0:03:49.9]} 30. Kc2 {[%clk 0:02:23.6]} 30...
Nxf2 {[%clk 0:03:47.6]} 31. Nd4 {[%clk 0:02:22.2]} 31... Kf6 {[%clk 0:03:43.3]}
32. c5 {[%clk 0:02:19.9]} 32... Ke7 {[%clk 0:03:36.9]} 33. Nb5 {[%clk
0:02:12.6]} 33... Kd7 {[%clk 0:03:34.3]} 34. Nd6 {[%clk 0:02:11]} 34... b6
{[%clk 0:03:18.4]} 35. Nxf7 {[%clk 0:02:09.9]} 35... bxc5 {[%clk 0:03:15.7]} 36.
Ng5 {[%clk 0:02:05.7]} 36... h6 {[%clk 0:03:13]} 37. Nf7 {[%clk 0:02:03.2]}
37... Kc7 {[%clk 0:02:35.8]} 38. Nxh6 {[%clk 0:01:24.8]} 38... Kd6 {[%clk
0:02:33.2]} 39. Nf7+ {[%clk 0:01:18.3]} 39... Kd5 {[%clk 0:02:32.1]} 40. Ng5
{[%clk 0:01:17.4]} 40... e5 {[%clk 0:02:07.5]} 41. Nf3 {[%clk 0:00:33.8]} 41...
e4 {[%clk 0:01:57.7]} 42. Nd2 {[%clk 0:00:33]} 42... Kd4 {[%clk 0:01:45.8]} 43.
Nc4 {[%clk 0:00:22.3]} 43... a4 {[%clk 0:01:45]} 44. h4 {[%clk 0:00:14.5]} 44...
axb3+ {[%clk 0:01:43.8]} 45. axb3 {[%clk 0:00:11.2]} 45... e3 {[%clk 0:01:42.5]}
46. g3 {[%clk 0:00:06.8]} 46... Ne4 {[%clk 0:01:35.4]} 47. Nb2 {[%clk
0:00:03.7]} 47... Nxg3 {[%clk 0:01:33.5]} 48. Kd1 {[%clk 0:00:01.7]} 48... Kc3
{[%clk 0:01:31.8]} 49. Na4+ {[%clk 0:00:01]} 49... Kb4 {[%clk 0:01:31.3]} 50.
Nb2 {[%clk 0:00:00.1]} 50... Kxb3 {[%clk 0:01:30.6]} 0-1

[Event "Live Chess"]
[Site "Chess.com"]
[Date "2023.05.21"]
[Round "-"]
[White "Bot_Boy"]
[Black "chessfiction"]
[Result "0-1"]
[WhiteElo "332"]
[BlackElo "2297"]
[TimeControl "300"]
[EndTime "8:08:03 PDT"]
[Termination "chessfiction won by resignation"]

1. e4 {[%clk 0:04:58.2]} 1... d5 {[%clk 0:04:57.7]} 2. e5 {[%clk 0:04:53.9]}
2... Nc6 {[%clk 0:04:55.9]} 3. Nf3 {[%clk 0:04:51.4]} 3... Bg4 {[%clk
0:04:54.4]} 4. Qe2 {[%clk 0:04:35.2]} 4... e6 {[%clk 0:04:50.8]} 5. d3 {[%clk
0:04:15.3]} 5... f6 {[%clk 0:04:48.2]} 6. exf6 {[%clk 0:04:10.7]} 6... Nxf6
{[%clk 0:04:48.1]} 7. h4 {[%clk 0:04:06.1]} 7... Bc5 {[%clk 0:04:43.5]} 8. c4
{[%clk 0:03:52.9]} 8... Nd4 {[%clk 0:04:40.9]} 9. Qd1 {[%clk 0:03:46.9]} 9...
O-O {[%clk 0:04:38]} 10. Be2 {[%clk 0:03:44.8]} 10... dxc4 {[%clk 0:04:34.6]}
11. Nxd4 {[%clk 0:03:35.3]} 11... Qxd4 {[%clk 0:04:32]} 12. Be3 {[%clk
0:03:20.6]} 12... Bb4+ {[%clk 0:04:26.4]} 13. Nc3 {[%clk 0:03:16.3]} 13... Bxc3+
{[%clk 0:04:24.6]} 14. bxc3 {[%clk 0:03:13.5]} 14... Qxc3+ {[%clk 0:04:24.5]}
15. Bd2 {[%clk 0:03:10.2]} 15... Qe5 {[%clk 0:04:23.6]} 16. f3 {[%clk
0:03:04.3]} 16... cxd3 {[%clk 0:04:20.5]} 17. fxg4 {[%clk 0:02:59.8]} 17... dxe2
{[%clk 0:04:14.3]} 18. Qxe2 {[%clk 0:02:57.7]} 18... Qxa1+ {[%clk 0:04:13.3]}
19. Qd1 {[%clk 0:02:52.3]} 19... Qxd1+ {[%clk 0:04:10.5]} 20. Kxd1 {[%clk
0:02:50.6]} 20... Nxg4 {[%clk 0:04:10.4]} 21. Re1 {[%clk 0:02:45.2]} 21... Rad8
{[%clk 0:04:08.1]} 22. Rxe6 {[%clk 0:02:39.8]} 22... Rf2 {[%clk 0:04:07]} 23.
Re2 {[%clk 0:02:22.6]} 23... Rxe2 {[%clk 0:04:01.7]} 24. Kxe2 {[%clk 0:02:20.4]}
24... Rxd2+ {[%clk 0:04:00.8]} 25. Kxd2 {[%clk 0:02:19]} 25... Kf7 {[%clk
0:04:00.1]} 26. Kc3 {[%clk 0:02:08.6]} 26... Ke6 {[%clk 0:04:00]} 0-1

[Event "Live Chess"]
[Site "Chess.com"]
[Date "2023.05.21"]
[Round "-"]
[White "stevochess11"]
[Black "Dhaydon19"]
[Result "0-1"]
[WhiteElo "1662"]
[BlackElo "2689"]
[TimeControl "300"]
[EndTime "8:08:22 PDT"]
[Termination "Dhaydon19 won by checkmate"]

1. d4 {[%clk 0:04:56.9]} 1... c6 {[%clk 0:04:58.8]} 2. Nf3 {[%clk 0:04:54]} 2...
d5 {[%clk 0:04:58.4]} 3. e3 {[%clk 0:04:52.6]} 3... Nf6 {[%clk 0:04:57.7]} 4.
Bd3 {[%clk 0:04:49.2]} 4... Bg4 {[%clk 0:04:56.9]} 5. c4 {[%clk 0:04:47.1]} 5...
Bxf3 {[%clk 0:04:56.5]} 6. Qxf3 {[%clk 0:04:45.1]} 6... e6 {[%clk 0:04:56.2]} 7.
Nc3 {[%clk 0:04:42.2]} 7... Bd6 {[%clk 0:04:55.2]} 8. cxd5 {[%clk 0:04:39.1]}
8... cxd5 {[%clk 0:04:54.4]} 9. O-O {[%clk 0:04:38.7]} 9... Nc6 {[%clk
0:04:53.6]} 10. Nb5 {[%clk 0:04:36.8]} 10... Bb8 {[%clk 0:04:52.2]} 11. Bd2
{[%clk 0:04:35.3]} 11... a6 {[%clk 0:04:51.5]} 12. Nc3 {[%clk 0:04:33]} 12...
Qc7 {[%clk 0:04:51]} 13. Rac1 {[%clk 0:04:31]} 13... Qxh2# {[%clk 0:04:49.4]}
0-1

[Event "Live Chess"]
[Site "Chess.com"]
[Date "2023.05.21"]
[Round "-"]
[White "GMHarry-youtube"]
[Black "RichardABates"]
[Result "0-1"]
[WhiteElo "2013"]
[BlackElo "2179"]
[TimeControl "300"]
[EndTime "8:08:24 PDT"]
[Termination "RichardABates won by checkmate"]

1. e4 {[%clk 0:04:59]} 1... c5 {[%clk 0:04:58.4]} 2. Nf3 {[%clk 0:04:58.2]} 2...
d6 {[%clk 0:04:57.3]} 3. Bb5+ {[%clk 0:04:57.8]} 3... Nd7 {[%clk 0:04:55.5]} 4.
a4 {[%clk 0:04:56.5]} 4... Nf6 {[%clk 0:04:51]} 5. Nc3 {[%clk 0:04:54.5]} 5...
e5 {[%clk 0:04:48.9]} 6. O-O {[%clk 0:04:51.8]} 6... Be7 {[%clk 0:04:47.6]} 7.
h3 {[%clk 0:04:45.7]} 7... O-O {[%clk 0:04:45.9]} 8. Re1 {[%clk 0:04:30]} 8...
a6 {[%clk 0:04:33.5]} 9. Bf1 {[%clk 0:04:28.2]} 9... Re8 {[%clk 0:04:29.3]} 10.
d3 {[%clk 0:04:26.8]} 10... Nf8 {[%clk 0:04:22.6]} 11. g4 {[%clk 0:04:23.4]}
11... Ng6 {[%clk 0:04:12.8]} 12. Nd5 {[%clk 0:04:11.2]} 12... Nxd5 {[%clk
0:04:08.9]} 13. exd5 {[%clk 0:04:10.3]} 13... f5 {[%clk 0:03:56.2]} 14. g5
{[%clk 0:04:03.2]} 14... Bf8 {[%clk 0:03:49.8]} 15. h4 {[%clk 0:04:00.2]} 15...
f4 {[%clk 0:03:47.2]} 16. h5 {[%clk 0:03:51.2]} 16... Nh8 {[%clk 0:03:34.2]} 17.
c3 {[%clk 0:03:46.6]} 17... Bg4 {[%clk 0:03:28.3]} 18. d4 {[%clk 0:03:18.1]}
18... cxd4 {[%clk 0:03:15.4]} 19. cxd4 {[%clk 0:03:16]} 19... e4 {[%clk
0:03:14.2]} 20. Bxf4 {[%clk 0:03:01]} 20... Bxf3 {[%clk 0:03:10.6]} 21. Qb3
{[%clk 0:02:57.9]} 21... Nf7 {[%clk 0:03:04.2]} 22. g6 {[%clk 0:02:54.4]} 22...
hxg6 {[%clk 0:02:55]} 23. hxg6 {[%clk 0:02:54.3]} 23... Ng5 {[%clk 0:02:49.7]}
24. Qxb7 {[%clk 0:02:48.2]} 24... Qf6 {[%clk 0:02:44.8]} 25. Bg3 {[%clk
0:02:40.7]} 25... Qxg6 {[%clk 0:02:41.9]} 26. Bxa6 {[%clk 0:02:39.3]} 26... Qh6
{[%clk 0:02:36.9]} 27. Bh2 {[%clk 0:02:36.3]} 27... Nh3+ {[%clk 0:02:34.2]} 28.
Kf1 {[%clk 0:02:34.7]} 28... Nf4 {[%clk 0:02:31.9]} 29. Kg1 {[%clk 0:02:29.6]}
29... Qg5+ {[%clk 0:02:15.9]} 30. Bg3 {[%clk 0:02:26.8]} 30... Nh5 {[%clk
0:02:12.3]} 31. Kh2 {[%clk 0:02:14.8]} 31... Nxg3 {[%clk 0:02:10.6]} 32. fxg3
{[%clk 0:02:13.6]} 32... Qh5+ {[%clk 0:02:08.4]} 33. Kg1 {[%clk 0:02:12.4]}
33... Qh1+ {[%clk 0:02:06.3]} 34. Kf2 {[%clk 0:02:11.5]} 34... e3+ {[%clk
0:02:03.8]} 35. Rxe3 {[%clk 0:02:09]} 35... Qg2+ {[%clk 0:02:02.2]} 36. Ke1
{[%clk 0:02:06.7]} 36... Rxe3+ {[%clk 0:02:00.6]} 37. Be2 {[%clk 0:02:05.4]}
37... Qxe2# {[%clk 0:01:59.2]} 0-1

[Event "Live Chess"]
[Site "Chess.com"]
[Date "2023.05.21"]
[Round "-"]
[White "Long1968"]
[Black "TheSmoulderingMaster"]
[Result "0-1"]
[WhiteElo "945"]
[BlackElo "1658"]
[TimeControl "300"]
[EndTime "8:08:32 PDT"]
[Termination "TheSmoulderingMaster won on time"]

1. e4 {[%clk 0:04:58]} 1... c5 {[%clk 0:04:58.8]} 2. c3 {[%clk 0:04:54.9]} 2...
d5 {[%clk 0:04:57.8]} 3. exd5 {[%clk 0:04:51.3]} 3... Qxd5 {[%clk 0:04:57.7]} 4.
d4 {[%clk 0:04:49]} 4... Nc6 {[%clk 0:04:56]} 5. Nf3 {[%clk 0:04:45.3]} 5... Bg4
{[%clk 0:04:54.6]} 6. Be2 {[%clk 0:04:41.8]} 6... e6 {[%clk 0:04:53]} 7. O-O
{[%clk 0:04:35.7]} 7... cxd4 {[%clk 0:04:50.4]} 8. cxd4 {[%clk 0:04:29.7]} 8...
O-O-O {[%clk 0:04:45]} 9. Nc3 {[%clk 0:04:23.3]} 9... Qd7 {[%clk 0:04:41.6]} 10.
Bg5 {[%clk 0:03:49.1]} 10... Be7 {[%clk 0:04:37]} 11. Bxe7 {[%clk 0:03:28.7]}
11... Ngxe7 {[%clk 0:04:34.6]} 12. Ne5 {[%clk 0:03:09.4]} 12... Bxe2 {[%clk
0:04:25.7]} 13. Nxe2 {[%clk 0:02:47.3]} 13... Nxe5 {[%clk 0:04:20.1]} 14. dxe5
{[%clk 0:02:41.5]} 14... Ng6 {[%clk 0:04:18.7]} 15. Qc2+ {[%clk 0:02:21.5]}
15... Kb8 {[%clk 0:04:16.3]} 16. Rfd1 {[%clk 0:02:07.6]} 16... Qc7 {[%clk
0:04:13]} 17. Qxc7+ {[%clk 0:01:22.9]} 17... Kxc7 {[%clk 0:04:10.6]} 18. Rac1+
{[%clk 0:01:06.7]} 18... Kb8 {[%clk 0:04:08.5]} 19. f4 {[%clk 0:00:55.2]} 19...
Rxd1+ {[%clk 0:04:05.5]} 20. Rxd1 {[%clk 0:00:50.7]} 20... Rc8 {[%clk
0:04:03.9]} 21. Rd2 {[%clk 0:00:20.4]} 21... a6 {[%clk 0:03:58.9]} 22. g3 {[%clk
0:00:13]} 22... Ne7 {[%clk 0:03:55.6]} 23. Nc3 {[%clk 0:00:05.9]} 23... Nf5
{[%clk 0:03:54.2]} 0-1

[Event "Live Chess"]
[Site "Chess.com"]
[Date "2023.05.21"]
[Round "-"]
[White "f4nomore"]
[Black "youtookmyhorse"]
[Result "1-0"]
[WhiteElo "1400"]
[BlackElo "770"]
[TimeControl "300"]
[EndTime "8:08:38 PDT"]
[Termination "f4nomore won by checkmate"]

1. e4 {[%clk 0:04:58.8]} 1... c6 {[%clk 0:04:59]} 2. Nf3 {[%clk 0:04:57.7]} 2...
d5 {[%clk 0:04:58.2]} 3. e5 {[%clk 0:04:55.9]} 3... Bg4 {[%clk 0:04:55.9]} 4.
Be2 {[%clk 0:04:54]} 4... Bxf3 {[%clk 0:04:53.4]} 5. Bxf3 {[%clk 0:04:52.3]}
5... e6 {[%clk 0:04:53]} 6. d4 {[%clk 0:04:50.6]} 6... Ne7 {[%clk 0:04:52.6]} 7.
c3 {[%clk 0:04:49.4]} 7... Nf5 {[%clk 0:04:52.1]} 8. O-O {[%clk 0:04:47.2]} 8...
Be7 {[%clk 0:04:50.6]} 9. Na3 {[%clk 0:04:44.3]} 9... O-O {[%clk 0:04:49.6]} 10.
Nc2 {[%clk 0:04:42.7]} 10... Nh4 {[%clk 0:04:40.6]} 11. Bg4 {[%clk 0:04:28]}
11... c5 {[%clk 0:04:39]} 12. Bh3 {[%clk 0:04:24.2]} 12... Nc6 {[%clk
0:04:33.7]} 13. Qg4 {[%clk 0:04:17]} 13... cxd4 {[%clk 0:04:26.3]} 14. cxd4
{[%clk 0:04:05.7]} 14... Nb4 {[%clk 0:04:22.7]} 15. Nxb4 {[%clk 0:03:59.3]}
15... Bxb4 {[%clk 0:04:22.2]} 16. Bg5 {[%clk 0:03:54.6]} 16... f5 {[%clk
0:03:50.2]} 17. exf6 {[%clk 0:03:47.8]} 17... gxf6 {[%clk 0:03:30.9]} 18. Bxh4+
{[%clk 0:03:46]} 18... Kh8 {[%clk 0:03:28.5]} 19. Qxe6 {[%clk 0:03:32.8]} 19...
Qb6 {[%clk 0:03:09.1]} 20. Qxd5 {[%clk 0:03:22.8]} 20... Rad8 {[%clk 0:03:04]}
21. Qb3 {[%clk 0:03:09.1]} 21... Bd6 {[%clk 0:02:48.2]} 22. Qxb6 {[%clk
0:03:04.5]} 22... axb6 {[%clk 0:02:46.9]} 23. Rad1 {[%clk 0:03:01.6]} 23... Be7
{[%clk 0:02:36.2]} 24. d5 {[%clk 0:02:57.3]} 24... b5 {[%clk 0:02:33.3]} 25. Be6
{[%clk 0:02:55.4]} 25... Bd6 {[%clk 0:02:30.6]} 26. Rd3 {[%clk 0:02:47]} 26...
Rde8 {[%clk 0:02:27.2]} 27. Rf3 {[%clk 0:02:44.2]} 27... Re7 {[%clk 0:02:26]}
28. Bxf6+ {[%clk 0:02:40.4]} 28... Rxf6 {[%clk 0:02:14.8]} 29. Rxf6 {[%clk
0:02:37.1]} 29... Rg7 {[%clk 0:02:11.3]} 30. g3 {[%clk 0:02:29.8]} 30... Rg5
{[%clk 0:02:07.6]} 31. Rc1 {[%clk 0:02:22.2]} 31... Re5 {[%clk 0:02:01.8]} 32.
Rc8+ {[%clk 0:02:16.5]} 32... Kg7 {[%clk 0:02:00.1]} 33. Rf7+ {[%clk 0:02:07.5]}
33... Kg6 {[%clk 0:01:56.7]} 34. Rg8+ {[%clk 0:02:00.9]} 34... Kh6 {[%clk
0:01:54.8]} 35. Rgg7 {[%clk 0:01:53.8]} 35... Re1+ {[%clk 0:01:52.2]} 36. Kg2
{[%clk 0:01:51.9]} 36... Bxg3 {[%clk 0:01:48.8]} 37. hxg3 {[%clk 0:01:49.9]}
37... Rxe6 {[%clk 0:01:47.6]} 38. dxe6 {[%clk 0:01:46.1]} 38... b4 {[%clk
0:01:45.8]} 39. Rxh7+ {[%clk 0:01:43.7]} 39... Kg6 {[%clk 0:01:44.7]} 40. Rfg7+
{[%clk 0:01:40.9]} 40... Kf6 {[%clk 0:01:42.9]} 41. e7 {[%clk 0:01:38.3]} 41...
b3 {[%clk 0:01:41.7]} 42. e8=Q {[%clk 0:01:33.1]} 42... bxa2 {[%clk 0:01:39.9]}
43. Qf7+ {[%clk 0:01:30.5]} 43... Ke5 {[%clk 0:01:38.5]} 44. Qxa2 {[%clk
0:01:27]} 44... b5 {[%clk 0:01:37]} 45. Rh5+ {[%clk 0:01:23.9]} 45... Ke4 {[%clk
0:01:35.4]} 46. Rg4+ {[%clk 0:01:20.5]} 46... Kd3 {[%clk 0:01:33.9]} 47. Qb1+
{[%clk 0:01:18.4]} 47... Kd2 {[%clk 0:01:32.2]} 48. Rd4+ {[%clk 0:01:14.4]}
48... Ke2 {[%clk 0:01:31.2]} 49. Re5# {[%clk 0:01:12.2]} 1-0

[Event "Live Chess"]
[Site "Chess.com"]
[Date "2023.05.21"]
[Round "-"]
[White "LordBenin"]
[Black "AlanPaling"]
[Result "1-0"]
[WhiteElo "1403"]
[BlackElo "1404"]
[TimeControl "300"]
[EndTime "8:09:04 PDT"]
[Termination "LordBenin won on time"]

1. d4 {[%clk 0:04:59.1]} 1... e5 {[%clk 0:04:58.3]} 2. d5 {[%clk 0:04:55.4]}
2... Bc5 {[%clk 0:04:56.7]} 3. e4 {[%clk 0:04:53.3]} 3... Nf6 {[%clk 0:04:54.8]}
4. Nc3 {[%clk 0:04:51.4]} 4... d6 {[%clk 0:04:51.5]} 5. Bd3 {[%clk 0:04:49.6]}
5... Bg4 {[%clk 0:04:45.9]} 6. Be2 {[%clk 0:04:39.6]} 6... Bxe2 {[%clk
0:04:34.3]} 7. Ngxe2 {[%clk 0:04:36.6]} 7... O-O {[%clk 0:04:32.9]} 8. O-O
{[%clk 0:04:33.4]} 8... Nbd7 {[%clk 0:04:30]} 9. Ng3 {[%clk 0:04:31.5]} 9... h6
{[%clk 0:04:26.9]} 10. Be3 {[%clk 0:04:21.1]} 10... Bxe3 {[%clk 0:04:23.7]} 11.
fxe3 {[%clk 0:04:20]} 11... a6 {[%clk 0:04:00.7]} 12. Qe2 {[%clk 0:04:12.5]}
12... Nc5 {[%clk 0:03:57.3]} 13. a3 {[%clk 0:04:05.7]} 13... Qd7 {[%clk
0:03:52.8]} 14. b4 {[%clk 0:04:03]} 14... Na4 {[%clk 0:03:51.4]} 15. Nxa4 {[%clk
0:04:01]} 15... Qxa4 {[%clk 0:03:49.9]} 16. c4 {[%clk 0:03:55]} 16... Qd7 {[%clk
0:03:38.3]} 17. Nf5 {[%clk 0:03:50.4]} 17... Kh7 {[%clk 0:03:32.5]} 18. Rf3
{[%clk 0:03:32]} 18... g6 {[%clk 0:03:28.2]} 19. Ng3 {[%clk 0:03:23.7]} 19...
Ng8 {[%clk 0:03:21.9]} 20. Raf1 {[%clk 0:03:19.9]} 20... f6 {[%clk 0:03:14.4]}
21. Qc2 {[%clk 0:03:14.9]} 21... c6 {[%clk 0:03:05.6]} 22. dxc6 {[%clk
0:03:08.4]} 22... bxc6 {[%clk 0:03:01.7]} 23. Rd1 {[%clk 0:03:05.6]} 23... Qe6
{[%clk 0:02:59.6]} 24. Rf2 {[%clk 0:03:00]} 24... Ra7 {[%clk 0:02:52.3]} 25.
Rfd2 {[%clk 0:02:57.8]} 25... Rd8 {[%clk 0:02:49]} 26. c5 {[%clk 0:02:51.4]}
26... d5 {[%clk 0:02:45.9]} 27. exd5 {[%clk 0:02:49.8]} 27... Rxd5 {[%clk
0:02:43.3]} 28. e4 {[%clk 0:02:37.4]} 28... Rxd2 {[%clk 0:02:38.1]} 29. Rxd2
{[%clk 0:02:34.9]} 29... Rd7 {[%clk 0:02:37]} 30. Qd1 {[%clk 0:02:29.9]} 30...
Rxd2 {[%clk 0:02:32.9]} 31. Qxd2 {[%clk 0:02:28.4]} 31... Qc4 {[%clk 0:02:07.7]}
32. h3 {[%clk 0:02:11.2]} 32... Qd4+ {[%clk 0:01:23.3]} 33. Qxd4 {[%clk
0:02:00]} 33... exd4 {[%clk 0:01:21.9]} 34. Kf2 {[%clk 0:01:58.9]} 34... Kg7
{[%clk 0:01:20.1]} 35. Ke2 {[%clk 0:01:57.9]} 35... Kf7 {[%clk 0:01:11.2]} 36.
Kd3 {[%clk 0:01:56.1]} 36... Ke6 {[%clk 0:01:09.6]} 37. Kxd4 {[%clk 0:01:55.1]}
37... h5 {[%clk 0:01:05.3]} 38. Ne2 {[%clk 0:01:51.9]} 38... Nh6 {[%clk
0:01:03.1]} 39. Nf4+ {[%clk 0:01:47.1]} 39... Kf7 {[%clk 0:01:01.7]} 40. a4
{[%clk 0:01:33.6]} 40... Ng8 {[%clk 0:00:49.4]} 41. b5 {[%clk 0:01:30.9]} 41...
axb5 {[%clk 0:00:46.9]} 42. axb5 {[%clk 0:01:29.3]} 42... cxb5 {[%clk
0:00:45.8]} 43. c6 {[%clk 0:01:26.9]} 43... Ne7 {[%clk 0:00:44.3]} 44. Kc5
{[%clk 0:01:25.9]} 44... b4 {[%clk 0:00:41.1]} 45. Nd3 {[%clk 0:01:16.4]} 45...
b3 {[%clk 0:00:37.8]} 46. c7 {[%clk 0:01:10.3]} 46... Nc8 {[%clk 0:00:33.4]} 47.
Kb4 {[%clk 0:01:08]} 47... Ke7 {[%clk 0:00:28.1]} 48. Kxb3 {[%clk 0:00:57.1]}
48... Kd6 {[%clk 0:00:26.6]} 49. Nf4 {[%clk 0:00:54.2]} 49... Kxc7 {[%clk
0:00:19.8]} 50. Nxg6 {[%clk 0:00:52.2]} 50... Nd6 {[%clk 0:00:18]} 51. Nf4
{[%clk 0:00:41.8]} 51... h4 {[%clk 0:00:13.3]} 52. Ng6 {[%clk 0:00:38.5]} 52...
Nxe4 {[%clk 0:00:11.4]} 53. Nxh4 {[%clk 0:00:37.4]} 53... Kd6 {[%clk 0:00:07.7]}
54. Kc2 {[%clk 0:00:29.8]} 54... Ke5 {[%clk 0:00:05.8]} 55. Kd3 {[%clk 0:00:20]}
55... Ng3 {[%clk 0:00:02.9]} 56. Ke3 {[%clk 0:00:13.9]} 56... Nf5+ {[%clk
0:00:00.7]} 57. Nxf5 {[%clk 0:00:11.6]} 1-0

[Event "Live Chess"]
[Site "Chess.com"]
[Date "2023.05.21"]
[Round "-"]
[White "BJAW87"]
[Black "Tiltador"]
[Result "0-1"]
[WhiteElo "1445"]
[BlackElo "907"]
[TimeControl "300"]
[EndTime "8:09:16 PDT"]
[Termination "Tiltador won by checkmate"]

1. e4 {[%clk 0:04:59]} 1... e5 {[%clk 0:04:58.3]} 2. Nc3 {[%clk 0:04:58.4]} 2...
f6 {[%clk 0:04:57.4]} 3. f4 {[%clk 0:04:57.7]} 3... d6 {[%clk 0:04:56.5]} 4.
fxe5 {[%clk 0:04:56.8]} 4... dxe5 {[%clk 0:04:54.8]} 5. Nf3 {[%clk 0:04:56]}
5... Bd6 {[%clk 0:04:53.6]} 6. Bc4 {[%clk 0:04:53.6]} 6... Ne7 {[%clk 0:04:52]}
7. O-O {[%clk 0:04:51.8]} 7... Nbc6 {[%clk 0:04:51]} 8. d3 {[%clk 0:04:50.4]}
8... Nd4 {[%clk 0:04:49.8]} 9. Nxd4 {[%clk 0:04:47.6]} 9... exd4 {[%clk
0:04:48.7]} 10. Nd5 {[%clk 0:04:46.4]} 10... O-O {[%clk 0:04:39.8]} 11. Nxe7+
{[%clk 0:04:38.2]} 11... Kh8 {[%clk 0:04:33.3]} 12. Nxc8 {[%clk 0:04:12.3]}
12... Rxc8 {[%clk 0:04:25]} 13. Qf3 {[%clk 0:04:10.4]} 13... Be5 {[%clk
0:04:16.6]} 14. Be6 {[%clk 0:03:55.6]} 14... Rb8 {[%clk 0:04:12.3]} 15. Qh3
{[%clk 0:03:49.3]} 15... Qe7 {[%clk 0:03:50.9]} 16. Bf5 {[%clk 0:03:47.6]} 16...
h6 {[%clk 0:03:44.4]} 17. Bxh6 {[%clk 0:03:41.5]} 17... gxh6 {[%clk 0:03:38.5]}
18. Qxh6+ {[%clk 0:03:41.4]} 18... Kg8 {[%clk 0:03:37.2]} 19. Rf3 {[%clk
0:03:32.4]} 19... Kf7 {[%clk 0:03:33.4]} 20. Bg6+ {[%clk 0:03:13.2]} 20... Ke6
{[%clk 0:03:27.7]} 21. Qh3+ {[%clk 0:03:07.9]} 21... Kd6 {[%clk 0:03:25.9]} 22.
Raf1 {[%clk 0:02:25.8]} 22... Rg8 {[%clk 0:03:10.8]} 23. Qf5 {[%clk 0:02:23.9]}
23... Rbf8 {[%clk 0:03:04.7]} 24. Rf4 {[%clk 0:02:14.4]} 24... Qe6 {[%clk
0:02:45.3]} 25. Qxe6+ {[%clk 0:02:06]} 25... Kxe6 {[%clk 0:02:44.2]} 26. Bf5+
{[%clk 0:02:04.5]} 26... Kd6 {[%clk 0:02:42.7]} 27. R4f2 {[%clk 0:02:03.8]}
27... Rg5 {[%clk 0:02:36]} 28. g3 {[%clk 0:02:01.4]} 28... Rh8 {[%clk
0:02:29.1]} 29. Kg2 {[%clk 0:01:56.6]} 29... c5 {[%clk 0:02:20.1]} 30. Rf3
{[%clk 0:01:50.5]} 30... b5 {[%clk 0:02:18.6]} 31. h4 {[%clk 0:01:46.3]} 31...
Rgh5 {[%clk 0:02:14]} 32. Bg4 {[%clk 0:01:42.1]} 32... R5h6 {[%clk 0:02:11]} 33.
a3 {[%clk 0:01:29.9]} 33... a5 {[%clk 0:02:09.7]} 34. b3 {[%clk 0:01:27.8]}
34... b4 {[%clk 0:02:07.2]} 35. axb4 {[%clk 0:01:26.8]} 35... axb4 {[%clk
0:02:06.1]} 36. Ra1 {[%clk 0:01:25.8]} 36... Kc6 {[%clk 0:02:00.3]} 37. Ra6+
{[%clk 0:01:24.9]} 37... Kb5 {[%clk 0:01:59.2]} 38. Ra8 {[%clk 0:01:23.2]} 38...
Rxa8 {[%clk 0:01:54.9]} 39. Rf5 {[%clk 0:01:21.7]} 39... Ra2 {[%clk 0:01:51.6]}
40. Bd1 {[%clk 0:01:21.1]} 40... Ra1 {[%clk 0:01:49.3]} 41. Rf1 {[%clk
0:01:20.1]} 41... Rg6 {[%clk 0:01:39.2]} 42. g4 {[%clk 0:01:18.2]} 42... Rg8
{[%clk 0:01:31.6]} 43. Kh3 {[%clk 0:01:17]} 43... Rh8 {[%clk 0:01:29.4]} 44. h5
{[%clk 0:01:16.1]} 44... Rh6 {[%clk 0:01:25.6]} 45. Kh4 {[%clk 0:01:15]} 45...
Rc1 {[%clk 0:01:22.6]} 46. g5 {[%clk 0:01:13.3]} 46... fxg5+ {[%clk 0:01:15]}
47. Kxg5 {[%clk 0:01:13.2]} 47... Rh8 {[%clk 0:01:12.6]} 48. h6 {[%clk
0:01:09.3]} 48... Ra1 {[%clk 0:01:01.7]} 49. Kf5 {[%clk 0:01:07.9]} 49... Bc7
{[%clk 0:00:55.1]} 50. e5 {[%clk 0:01:07.3]} 50... Ra6 {[%clk 0:00:50.9]} 51.
Ke4 {[%clk 0:01:05.6]} 51... Re6 {[%clk 0:00:45.4]} 52. Kd5 {[%clk 0:01:04.4]}
52... Rxe5# {[%clk 0:00:42.3]} 0-1